bitfinex-derivatives/quotes_BTCF0:USTF0_20240830
["timestamp","ask_amount","ask_price","bid_price","bid_amount"]
[1725019400852,0.106879,59516.0,59515.0,0.93787456]
[1725019401352,0.106879,59516.0,59515.0,0.887699]
[1725019401739,0.190877,59516.0,59515.0,0.3628]
[1725019401940,0.190877,59516.0,59515.0,0.002]
[1725019401941,1.378955,59516.0,59515.0,0.002]
[1725019402145,1.35379565,59516.0,59515.0,0.002]
[1725019404340,0.75379565,59516.0,59515.0,0.002]
[1725019406752,1.378955,59516.0,59515.0,0.002]
[1725019407056,1.378955,59516.0,59510.0,0.00025223]
[1725019407057,0.16801,59511.0,59510.0,0.00025223]
[1725019407253,0.92881,59511.0,59510.0,0.00025223]
[1725019407441,2.03293,59511.0,59510.0,0.00025223]
[1725019407752,2.18581,59511.0,59510.0,0.00025223]
[1725019408147,2.24466151,59511.0,59510.0,0.00125223]
[1725019409546,2.32966651,59511.0,59510.0,0.00225223]
[1725019410656,2.33066651,59511.0,59510.0,0.00125223]
[1725019410957,2.33066651,59511.0,59510.0,0.00225223]
[1725019410958,2.33266651,59511.0,59510.0,0.00225223]
[1725019411847,0.084022,59499.0,59498.0,0.00022]
[1725019412059,1.012866,59499.0,59498.0,0.00022]
[1725019412256,0.168066,59491.0,59490.0,0.1334]
[1725019412446,1.0708,59491.0,59476.0,0.0039]
[1725019412747,0.084049,59480.0,59479.0,0.0039]
[1725019412950,0.084049,59480.0,59474.0,0.00025223]
[1725019412951,0.13,59480.0,59474.0,0.00025223]
[1725019413154,0.29,59475.0,59474.0,0.00025223]
[1725019413357,0.484056,59475.0,59474.0,0.00025223]
[1725019413544,0.559256,59475.0,59474.0,0.00025223]
[1725019413743,1.663656,59475.0,59474.0,0.00025223]
[1725019414151,1.663656,59475.0,59474.0,0.00825223]
[1725019414746,1.373656,59475.0,59474.0,0.00425223]
[1725019414949,1.063656,59475.0,59474.0,0.00825223]
[1725019415148,1.663656,59475.0,59474.0,0.00825223]
[1725019415354,1.747712,59475.0,59474.0,0.00825223]
[1725019415555,1.85645246,59475.0,59474.0,0.00425223]
[1725019415747,1.77539646,59475.0,59474.0,0.00525223]
[1725019416257,1.77539646,59475.0,59474.0,0.00125223]
[1725019416451,1.77739646,59475.0,59474.0,0.00225223]
[1725019416852,1.97247646,59475.0,59474.0,0.00225223]
[1725019417359,1.37247646,59475.0,59474.0,0.00225223]
[1725019418356,0.49897646,59475.0,59474.0,0.00225223]
[1725019419858,0.30389646,59475.0,59474.0,0.00225223]
[1725019422058,1.09829646,59475.0,59474.0,0.00225223]
[1725019422251,1.69829646,59475.0,59474.0,0.00225223]
[1725019422862,1.09829646,59475.0,59474.0,0.00225223]
[1725019423057,1.69829646,59475.0,59474.0,0.00225223]
[1725019426063,1.84621646,59475.0,59474.0,0.00225223]
[1725019426259,0.74181646,59475.0,59474.0,0.00225223]
[1725019427462,0.74181646,59475.0,59474.0,0.00247223]
[1725019428065,1.24621646,59475.0,59474.0,0.00247223]
[1725019431154,0.74181646,59475.0,59474.0,0.00247223]
[1725019431665,0.82587246,59475.0,59474.0,0.00247223]
[1725019433160,0.82587246,59475.0,59464.0,0.1667]
[1725019433161,0.08407,59465.0,59464.0,0.1667]
[1725019433359,0.08408,59458.0,59457.0,0.0786]
[1725019433555,0.084086,59454.0,59451.0,0.0827]
[1725019433766,0.084086,59454.0,59445.0,0.0765]
[1725019433767,0.29,59452.0,59445.0,0.0765]
[1725019433973,0.29,59446.0,59445.0,0.160597]
[1725019434155,0.39,59446.0,59445.0,0.160597]
[1725019434357,0.470097,59446.0,59445.0,0.0765]
[1725019434667,0.458097,59446.0,59445.0,0.0765]
[1725019435164,0.084104,59442.0,59440.0,0.00025223]
[1725019435378,0.734904,59441.0,59440.0,0.00025223]
[1725019435672,0.844904,59441.0,59440.0,0.00025223]
[1725019436061,0.4,59441.0,59440.0,0.00025223]
[1725019436261,0.11,59441.0,59440.0,0.00025223]
[1725019436555,0.105,59441.0,59440.0,0.00025223]
[1725019437569,0.112,59441.0,59440.0,0.00125223]
[1725019437772,0.12,59441.0,59440.0,0.05232042]
[1725019437960,0.12,59441.0,59440.0,0.08635723]
[1725019439376,0.12,59441.0,59440.0,0.15324656]
[1725019439868,0.12,59441.0,59440.0,0.08635723]
[1725019440260,0.06108684,59441.0,59440.0,0.17046223]
[1725019440462,0.18004,59445.0,59444.0,0.0841]
[1725019440773,0.26004,59445.0,59444.0,0.0841]
[1725019441269,0.26004,59445.0,59444.0,1.40104516]
[1725019442061,0.26004,59445.0,59444.0,1.40404516]
[1725019442365,0.26004,59445.0,59444.0,1.50477237]
[1725019442568,0.26104,59445.0,59444.0,1.50877237]
[1725019443157,0.081,59445.0,59444.0,1.51377237]
[1725019443560,0.081,59445.0,59444.0,0.72894516]
[1725019443763,0.165098,59445.0,59444.0,0.14016516]
[1725019444066,0.12401916,59445.0,59444.0,0.009]
[1725019444272,0.12301916,59445.0,59444.0,0.013]
[1725019444864,0.03892116,59445.0,59444.0,0.16404054]
[1725019445067,0.03892116,59445.0,59444.0,0.0971]
[1725019445569,0.04392116,59445.0,59444.0,0.0931]
[1725019445960,0.03792116,59445.0,59444.0,0.0861]
[1725019446164,0.04492116,59445.0,59444.0,0.0861]
[1725019447268,0.04492116,59445.0,59444.0,0.0841]
[1725019447465,0.05092116,59445.0,59444.0,0.0851]
[1725019447669,0.04992116,59445.0,59444.0,0.0861]
[1725019451779,0.13401916,59445.0,59444.0,0.002]
[1725019455375,0.13401916,59445.0,59444.0,0.06897062]
[1725019456972,0.13401916,59445.0,59444.0,0.002]
[1725019457574,0.13401916,59445.0,59444.0,0.06897062]
[1725019457977,0.13401916,59445.0,59444.0,0.002]
[1725019458583,0.21811716,59445.0,59444.0,0.002]
[1725019459885,0.57891716,59445.0,59444.0,0.002]
[1725019460085,0.57891716,59445.0,59444.0,0.00222]
[1725019461883,0.75395716,59445.0,59444.0,0.00222]
[1725019462387,1.85863716,59445.0,59444.0,0.00222]
[1725019463387,1.25863716,59445.0,59444.0,0.00222]
[1725019463590,0.66985916,59445.0,59444.0,0.00222]
[1725019464087,0.66985916,59445.0,59444.0,0.06926644]
[1725019464292,0.66985916,59445.0,59444.0,0.00222]
[1725019464682,0.81373916,59445.0,59444.0,0.00222]
[1725019464987,1.17453916,59445.0,59444.0,0.00222]
[1725019465489,1.46453916,59445.0,59444.0,0.00222]
[1725019466881,1.10373916,59445.0,59444.0,0.00222]
[1725019467083,1.46453916,59445.0,59444.0,0.00222]
[1725019467887,1.17453916,59445.0,59444.0,0.00222]
[1725019468085,1.46453916,59445.0,59444.0,0.00222]
[1725019468302,1.54863716,59445.0,59444.0,0.00222]
[1725019468981,1.46453916,59445.0,59444.0,0.00222]
[1725019469186,0.084104,59442.0,59440.0,0.00025223]
[1725019469392,0.084104,59441.0,59440.0,0.00025223]
[1725019469589,0.194104,59441.0,59440.0,0.00025223]
[1725019470793,0.197104,59441.0,59440.0,0.00025223]
[1725019475596,0.22743562,59441.0,59440.0,0.00025223]
[1725019479289,0.22743562,59441.0,59440.0,0.05065035]
[1725019481220,0.22743562,59441.0,59440.0,0.00025223]
[1725019482218,0.51743562,59441.0,59440.0,0.00025223]
[1725019482518,0.66045791,59441.0,59440.0,0.00025223]
[1725019485819,0.57635391,59441.0,59440.0,0.00025223]
[1725019486014,0.28635391,59441.0,59440.0,0.00025223]
[1725019486212,0.51743562,59441.0,59440.0,0.00025223]
[1725019486411,0.20224991,59441.0,59440.0,0.08435723]
[1725019486617,0.14333162,59441.0,59440.0,0.08435723]
[1725019487124,0.14333162,59441.0,59440.0,0.45846223]
[1725019487314,0.14333162,59441.0,59440.0,0.96318223]
[1725019487515,0.12612,59442.0,59441.0,0.168208]
[1725019487721,0.16569712,59442.0,59441.0,0.168208]
[1725019488019,0.0555719,59450.0,59449.0,0.084093]
[1725019488224,0.12,59450.0,59446.0,0.3608]
[1725019488410,0.12,59450.0,59447.0,0.0765]
[1725019488813,0.15105583,59450.0,59447.0,0.0765]
[1725019489219,0.15105583,59450.0,59449.0,0.13449112]
[1725019489528,0.15105583,59450.0,59449.0,0.084093]
[1725019489720,0.16005583,59450.0,59449.0,0.084093]
[1725019490622,0.16105583,59450.0,59449.0,0.085093]
[1725019490827,0.17105583,59450.0,59449.0,0.085093]
[1725019491327,0.17005583,59450.0,59449.0,0.086093]
[1725019491830,0.17005583,59450.0,59449.0,0.086313]
[1725019495527,0.17005583,59450.0,59449.0,0.00222]
[1725019495828,0.25414683,59450.0,59449.0,0.00222]
[1725019496122,0.17005583,59450.0,59449.0,0.00222]
[1725019497421,0.17005583,59450.0,59449.0,0.086313]
[1725019503432,0.25414683,59450.0,59449.0,0.00222]
[1725019505724,0.17005583,59450.0,59449.0,0.086313]
[1725019509534,0.17005583,59450.0,59449.0,0.086093]
[1725019515321,0.17005583,59450.0,59449.0,0.002]
[1725019515527,0.17005583,59450.0,59449.0,0.086093]
[1725019518231,0.17005583,59450.0,59449.0,0.002]
[1725019519231,0.53085583,59450.0,59449.0,0.002]
[1725019519429,0.17005583,59450.0,59449.0,0.002]
[1725019521737,0.25414683,59450.0,59449.0,0.002]
[1725019522241,0.39714798,59450.0,59449.0,0.002]
[1725019522437,0.56654798,59450.0,59449.0,0.002]
[1725019523341,0.56654798,59450.0,59449.0,0.00222]
[1725019523834,0.50763783,59450.0,59449.0,0.00222]
[1725019524637,0.17005583,59450.0,59449.0,0.447113]
[1725019524842,0.139,59450.0,59449.0,1.841753]
[1725019525036,0.019,59450.0,59449.0,1.841753]
[1725019525227,0.019,59450.0,59449.0,1.925846]
[1725019525638,0.019,59450.0,59449.0,1.841753]
[1725019525838,0.029,59450.0,59449.0,1.841753]
[1725019526229,0.029,59450.0,59449.0,1.922853]
[1725019527342,0.021,59450.0,59449.0,1.929853]
[1725019527532,0.012,59450.0,59449.0,1.936853]
[1725019527943,0.011,59450.0,59449.0,1.933853]
[1725019528343,0.00025223,59451.0,59449.0,2.23554088]
[1725019528537,0.0039,59459.0,59458.0,0.16816]
[1725019528743,0.0811,59482.0,59458.0,0.16816]
[1725019528744,0.0039,59478.0,59477.0,0.084053]
[1725019529041,0.05890496,59488.0,59477.0,0.78428]
[1725019529233,0.15890496,59488.0,59487.0,0.3608]
[1725019529436,0.18968345,59488.0,59487.0,0.3608]
[1725019529647,0.18968345,59488.0,59485.0,0.084042]
[1725019530152,0.13077849,59488.0,59485.0,0.084042]
[1725019531346,0.13077849,59488.0,59483.0,0.3608]
[1725019531540,0.29,59486.0,59483.0,0.3608]
[1725019531742,0.0802,59485.0,59483.0,0.3608]
[1725019531936,0.1302,59485.0,59483.0,0.3608]
[1725019532435,0.1282,59485.0,59483.0,0.3608]
[1725019532842,0.1282,59485.0,59483.0,0.3618]
[1725019534147,0.1282,59485.0,59483.0,0.3628]
[1725019534537,0.1292,59485.0,59483.0,0.3628]
[1725019534753,0.1292,59485.0,59483.0,0.446843]
[1725019535046,0.1282,59485.0,59483.0,0.445843]
[1725019535253,0.1292,59485.0,59484.0,0.084043]
[1725019535642,0.1282,59485.0,59484.0,0.084043]
[1725019536753,0.1332,59485.0,59484.0,0.084043]
[1725019537437,0.1342,59485.0,59484.0,0.086043]
[1725019541442,0.1342,59485.0,59484.0,0.002]
[1725019541661,0.1342,59485.0,59482.0,0.36105223]
[1725019541662,0.084045,59483.0,59482.0,0.00025223]
[1725019541852,0.204045,59483.0,59482.0,0.00025223]
[1725019542247,0.2002,59483.0,59472.0,0.08406]
[1725019542455,0.29,59478.0,59475.0,0.3608]
[1725019542756,0.12,59478.0,59477.0,0.084053]
[1725019543056,0.12,59478.0,59477.0,0.168106]
[1725019543246,0.12,59478.0,59477.0,1.356559]
[1725019543753,0.005,59483.0,59482.0,0.168092]
[1725019543953,0.075,59483.0,59482.0,0.818892]
[1725019544149,0.077,59483.0,59482.0,0.819892]
[1725019544346,0.072,59483.0,59482.0,0.819892]
[1725019544542,0.072,59483.0,59482.0,0.818892]
[1725019544859,0.072,59483.0,59482.0,0.734846]
[1725019544860,0.07,59483.0,59482.0,0.734846]
[1725019545357,0.079,59483.0,59482.0,0.735846]
[1725019546244,0.079,59483.0,59482.0,0.819892]
[1725019546462,0.079,59483.0,59482.0,1.924252]
[1725019546463,0.009,59483.0,59482.0,1.924252]
[1725019547044,0.00025223,59493.0,59492.0,0.084032]
[1725019547256,0.07025223,59493.0,59492.0,1.095632]
[1725019547768,0.07025223,59493.0,59492.0,1.599912]
[1725019548061,0.07025223,59493.0,59492.0,2.199912]
[1725019548244,0.00725223,59493.0,59492.0,2.200912]
[1725019548446,0.00925223,59493.0,59492.0,2.285944]
[1725019550050,0.0852,59514.0,59492.0,2.285944]
[1725019550356,0.16631453,59507.0,59504.0,0.3608]
[1725019550556,0.084014,59505.0,59504.0,0.3608]
[1725019550756,0.204014,59505.0,59504.0,0.3608]
[1725019551759,0.204014,59505.0,59504.0,0.3618]
[1725019553054,0.12,59505.0,59504.0,0.446815]
[1725019554751,0.12,59505.0,59504.0,0.3628]
[1725019554950,0.204013,59505.0,59504.0,0.3628]
[1725019555958,0.12,59505.0,59504.0,0.446815]
[1725019559467,0.12,59505.0,59504.0,0.086015]
[1725019560360,0.204013,59505.0,59504.0,0.002]
[1725019560769,0.204013,59505.0,59502.0,0.084017]
[1725019561566,0.204013,59505.0,59504.0,0.001]
[1725019564864,0.084017,59503.0,59502.0,0.001]
[1725019565164,0.564817,59503.0,59502.0,0.001]
[1725019565460,0.563817,59503.0,59500.0,0.08402]
[1725019565859,0.562817,59503.0,59500.0,0.08402]
[1725019566059,0.00110798,59502.0,59500.0,0.08402]
[1725019566259,0.12,59502.0,59500.0,0.08402]
[1725019566461,0.204019,59502.0,59500.0,0.08402]
[1725019567767,0.12,59502.0,59499.0,0.00025223]
[1725019568069,0.084019,59501.0,59500.0,0.001]
[1725019568259,0.194019,59501.0,59500.0,0.001]
[1725019568461,0.083021,59500.0,59499.0,0.00025223]
[1725019568666,0.193021,59500.0,59499.0,0.00025223]
[1725019569065,0.193021,59500.0,59499.0,0.00125223]
[1725019569365,0.11,59500.0,59499.0,0.08527423]
[1725019570056,0.194021,59500.0,59499.0,0.08527423]
[1725019570465,0.194021,59500.0,59499.0,0.08627423]
[1725019571169,0.22398923,59500.0,59499.0,0.08627423]
[1725019571970,0.14096823,59500.0,59499.0,0.08627423]
[1725019572668,0.14096823,59500.0,59499.0,0.08527423]
[1725019572867,0.14096823,59500.0,59499.0,0.13560939]
[1725019573061,0.14096823,59500.0,59499.0,0.08527423]
[1725019573362,0.14096823,59500.0,59499.0,0.13560939]
[1725019573566,0.14096823,59500.0,59499.0,0.08527423]
[1725019574668,0.13996823,59500.0,59499.0,0.13560939]
[1725019574860,0.13996823,59500.0,59499.0,0.08527423]
[1725019575063,0.13996823,59500.0,59499.0,0.13460939]
[1725019575261,0.14096823,59500.0,59499.0,0.13560939]
[1725019575857,0.26036823,59500.0,59499.0,0.13560939]
[1725019576559,0.26036823,59500.0,59499.0,0.08527423]
[1725019577766,0.26036823,59500.0,59499.0,0.13566572]
[1725019578264,0.25936823,59500.0,59499.0,0.13466572]
[1725019578475,0.25936823,59500.0,59499.0,0.08527423]
[1725019578678,0.13996823,59500.0,59499.0,0.08527423]
[1725019583371,0.04,59500.0,59499.0,0.00125223]
[1725019584776,0.04,59500.0,59499.0,0.08527423]
[1725019586884,0.04,59500.0,59499.0,0.08549423]
[1725019588081,0.04,59500.0,59499.0,0.16951623]
[1725019592889,0.04,59500.0,59499.0,0.53031623]
[1725019593586,0.04,59500.0,59499.0,0.16951623]
[1725019593787,0.04,59500.0,59499.0,0.53031623]
[1725019594394,0.04,59500.0,59499.0,0.90433823]
[1725019598282,0.04,59500.0,59499.0,0.98743823]
[1725019599696,0.04,59500.0,59499.0,0.44629423]
[1725019599882,0.124021,59500.0,59499.0,0.00147223]
[1725019600589,0.124021,59500.0,59499.0,0.08549423]
[1725019600783,0.124021,59500.0,59499.0,0.00147223]
[1725019604300,0.124021,59500.0,59499.0,0.00125223]
[1725019605796,0.498042,59500.0,59499.0,0.00125223]
[1725019605982,0.08403,59493.0,59492.0,0.0039]
[1725019606295,0.084039,59487.0,59485.0,0.084041]
[1725019606500,0.0835,59486.0,59485.0,0.084042]
[1725019606788,0.12,59486.0,59485.0,0.084042]
[1725019607198,0.118,59486.0,59485.0,0.084042]
[1725019608085,0.118,59486.0,59485.0,0.094042]
[1725019608483,0.118,59486.0,59485.0,0.178084]
[1725019608782,0.07595584,59486.0,59485.0,1.49451254]
[1725019608983,0.0574607,59491.0,59490.0,0.16807]
[1725019609188,0.08025223,59491.0,59490.0,0.81887]
[1725019609389,0.08025223,59491.0,59490.0,1.32315]
[1725019609897,0.11017383,59491.0,59490.0,1.32315]
[1725019611088,0.11017383,59491.0,59490.0,1.4130882]
[1725019611487,0.11017383,59491.0,59490.0,1.4170882]
[1725019611889,0.11017383,59491.0,59490.0,1.32715]
[1725019612089,0.08025223,59491.0,59490.0,1.33215]
[1725019612393,0.08025223,59491.0,59490.0,0.82787]
[1725019613888,0.08025223,59491.0,59490.0,0.453835]
[1725019614100,0.08025223,59491.0,59490.0,0.452835]
[1725019614403,0.16275223,59491.0,59490.0,0.452835]
[1725019614891,0.16275223,59491.0,59490.0,0.090035]
[1725019614892,0.24678523,59491.0,59490.0,0.090035]
[1725019615097,0.24678523,59491.0,59490.0,0.15718483]
[1725019615306,0.33288523,59491.0,59490.0,0.084035]
[1725019615493,0.33288523,59491.0,59490.0,0.0543566]
[1725019615686,0.33288523,59491.0,59490.0,0.004]
[1725019616085,0.33288523,59491.0,59490.0,0.0543566]
[1725019616289,0.33288523,59491.0,59490.0,0.004]
[1725019618289,0.41691823,59491.0,59490.0,0.004]
[1725019618605,0.33288523,59491.0,59490.0,0.004]
[1725019621099,0.08404,59486.0,59485.0,0.00022]
[1725019621300,0.86484,59486.0,59485.0,0.00022]
[1725019621505,1.4532,59486.0,59485.0,0.00022]
[1725019622300,1.4532,59486.0,59485.0,0.00822]
[1725019622603,1.4532,59486.0,59485.0,0.01522]
[1725019623797,1.48405228,59486.0,59485.0,0.01522]
[1725019623997,1.54139044,59486.0,59485.0,0.00722]
[1725019624200,1.03707044,59486.0,59485.0,0.00822]
[1725019624502,1.03807044,59486.0,59485.0,0.00222]
[1725019626302,0.98073228,59486.0,59485.0,0.00222]
[1725019626713,1.03806716,59486.0,59485.0,0.00222]
[1725019626898,1.17082716,59486.0,59485.0,0.00222]
[1725019628114,1.53162716,59486.0,59485.0,0.00222]
[1725019629396,1.47429228,59486.0,59485.0,0.00222]
[1725019629606,1.18429228,59486.0,59485.0,0.00222]
[1725019630504,0.46269228,59486.0,59485.0,0.00222]
[1725019630804,1.18429228,59486.0,59485.0,0.00222]
[1725019633514,0.46269228,59486.0,59485.0,0.00222]
[1725019633717,1.18429228,59486.0,59485.0,0.00222]
[1725019633906,0.46269228,59486.0,59485.0,0.00222]
[1725019634100,1.47429228,59486.0,59485.0,0.00222]
[1725019634404,1.47429228,59486.0,59480.0,0.00025223]
[1725019634405,0.374047,59481.0,59480.0,0.00025223]
[1725019634601,0.844847,59481.0,59480.0,0.00025223]
[1725019635514,0.845847,59481.0,59480.0,0.00025223]
[1725019636909,0.929894,59481.0,59480.0,0.00025223]
[1725019637408,0.639894,59481.0,59480.0,0.00025223]
[1725019639817,0.555847,59481.0,59480.0,0.00025223]
[1725019640018,0.555847,59481.0,59480.0,0.08430123]
[1725019640019,0.4718,59481.0,59480.0,0.08430123]
[1725019640221,0.111,59481.0,59480.0,0.16835023]
[1725019640406,0.111,59481.0,59480.0,1.35675923]
[1725019640909,0.111,59481.0,59480.0,1.44425923]
[1725019641309,0.111,59481.0,59480.0,1.36021023]
[1725019641812,0.111,59481.0,59480.0,0.17180123]
[1725019642119,0.11,59481.0,59480.0,0.19080123]
[1725019642706,0.11,59481.0,59480.0,0.18880123]
[1725019643620,0.11,59481.0,59480.0,0.26285023]
[1725019643924,0.11,59481.0,59480.0,0.26885023]
[1725019644312,0.11,59481.0,59480.0,1.36721023]
[1725019644512,0.11,59481.0,59480.0,1.36421023]
[1725019645411,0.11,59481.0,59480.0,1.44825923]
[1725019646914,0.11,59481.0,59480.0,1.49861583]
[1725019647115,0.11,59481.0,59480.0,1.44825923]
[1725019647309,0.11,59481.0,59480.0,1.49861583]
[1725019647514,0.03045755,59487.0,59486.0,0.08404]
[1725019647716,0.11,59487.0,59486.0,0.08404]
[1725019648914,0.112,59487.0,59486.0,0.08404]
[1725019652825,0.20214075,59491.0,59490.0,0.084035]
[1725019652826,0.11370299,59491.0,59490.0,0.084035]
[1725019653026,0.21370299,59491.0,59490.0,0.084035]
[1725019654028,0.21370299,59491.0,59490.0,0.085035]
[1725019654418,0.12966899,59491.0,59490.0,0.085035]
[1725019655326,0.12966899,59491.0,59490.0,0.086035]
[1725019659031,0.05,59491.0,59490.0,0.002]
[1725019659836,0.05,59491.0,59490.0,0.086035]
[1725019662522,0.05,59491.0,59490.0,0.17007]
[1725019662725,0.05,59491.0,59490.0,0.758385]
[1725019663140,0.05,59491.0,59490.0,1.119185]
[1725019666335,0.05,59491.0,59490.0,1.719185]
[1725019667034,0.00025223,59496.0,59495.0,0.252084]
[1725019667232,0.10025223,59496.0,59495.0,1.036124]
[1725019668236,0.10025223,59496.0,59495.0,2.141364]
[1725019668441,0.09625223,59496.0,59495.0,2.141364]
[1725019669334,0.09625223,59496.0,59495.0,2.142364]
[1725019670436,0.0039,59508.0,59507.0,0.084011]
[1725019670647,0.12,59508.0,59507.0,0.29]
[1725019671033,0.12,59508.0,59507.0,0.374011]
[1725019671346,0.12,59508.0,59503.0,0.444815]
[1725019671347,0.511268,59508.0,59503.0,0.444815]
[1725019671531,0.084015,59504.0,59502.0,0.00025223]
[1725019671746,0.528832,59503.0,59502.0,0.00025223]
[1725019671939,0.928832,59503.0,59502.0,0.00025223]
[1725019672239,0.638832,59503.0,59502.0,0.00025223]
[1725019672438,0.554816,59503.0,59502.0,0.00025223]
[1725019673443,0.554816,59503.0,59502.0,0.00125223]
[1725019673637,0.194016,59503.0,59502.0,0.00125223]
[1725019673835,0.194016,59503.0,59502.0,0.08627023]
[1725019674040,0.194016,59503.0,59502.0,0.08527023]
[1725019674245,0.11,59503.0,59502.0,0.08627023]
[1725019676951,0.11,59503.0,59502.0,0.37627023]
[1725019678741,0.11,59503.0,59502.0,0.46028823]
[1725019680043,0.11,59503.0,59502.0,0.17028823]
[1725019680643,0.11,59503.0,59502.0,0.08627023]
[1725019682154,0.194016,59503.0,59502.0,0.00225223]
[1725019682943,0.194016,59503.0,59502.0,0.08627023]
[1725019684950,0.194016,59503.0,59502.0,0.00225223]
[1725019685150,0.554816,59503.0,59502.0,0.00225223]
[1725019685460,0.194016,59503.0,59502.0,0.00225223]
[1725019687256,0.194016,59503.0,59502.0,0.08627023]
[1725019690342,0.11,59503.0,59502.0,0.08627023]
[1725019690544,0.194016,59503.0,59502.0,0.08627023]
[1725019691855,0.11,59503.0,59502.0,0.08627023]
[1725019692156,0.11,59503.0,59502.0,0.00225223]
[1725019692347,0.11,59503.0,59502.0,0.08627023]
[1725019692544,0.11,59503.0,59502.0,0.17028823]
[1725019692945,0.11,59503.0,59502.0,0.53108823]
[1725019693256,0.11,59503.0,59502.0,0.17028823]
[1725019694049,0.11,59503.0,59502.0,0.53108823]
[1725019695052,0.11,59503.0,59502.0,0.17028823]
[1725019697160,0.11,59503.0,59502.0,0.53108823]
[1725019697557,0.11,59503.0,59502.0,0.17028823]
[1725019699351,0.11,59503.0,59502.0,0.08627023]
[1725019702160,0.11,59503.0,59502.0,0.20627023]
[1725019702351,0.11,59503.0,59502.0,0.08627023]
[1725019702554,0.11,59503.0,59502.0,0.20627023]
[1725019705567,0.11,59503.0,59502.0,0.08627023]
[1725019707766,0.278032,59503.0,59502.0,0.00225223]
[1725019708659,0.194016,59503.0,59502.0,0.00225223]
[1725019711468,0.11,59503.0,59502.0,0.08627023]
[1725019713163,0.11,59503.0,59502.0,0.44707023]
[1725019714165,0.11,59503.0,59502.0,0.17028823]
[1725019714363,0.11,59503.0,59502.0,0.44707023]
[1725019715863,0.11,59503.0,59502.0,0.53108823]
[1725019716069,0.11,59503.0,59502.0,0.44707023]
[1725019719462,0.11,59503.0,59502.0,0.08627023]
[1725019720861,0.11,59503.0,59502.0,0.00225223]
[1725019720862,0.568032,59503.0,59502.0,0.00225223]
[1725019721061,0.61252367,59503.0,59502.0,0.00225223]
[1725019721277,0.32252367,59503.0,59502.0,0.00225223]
[1725019721571,0.278032,59503.0,59502.0,0.00225223]
[1725019721774,0.194016,59503.0,59502.0,0.00225223]
[1725019722874,0.11,59503.0,59502.0,0.08627023]
[1725019724167,0.10978,59503.0,59502.0,0.08627023]
[1725019724576,0.47058,59503.0,59502.0,0.08627023]
[1725019724969,0.47058,59503.0,59502.0,0.00225223]
[1725019724970,0.554596,59503.0,59502.0,0.00225223]
[1725019725179,0.59908767,59503.0,59502.0,0.00225223]
[1725019725875,0.59908767,59503.0,59502.0,0.00125223]
[1725019726073,0.23828767,59503.0,59502.0,0.00225223]
[1725019726275,0.193796,59503.0,59502.0,0.00225223]
[1725019729973,0.313796,59503.0,59502.0,0.00225223]
[1725019732177,0.193796,59503.0,59502.0,0.00225223]
[1725019734380,0.10978,59503.0,59502.0,0.08627023]
[1725019734876,0.2527,59503.0,59502.0,0.08627023]
[1725019735072,0.336716,59503.0,59502.0,0.08627023]
[1725019735671,0.2527,59503.0,59502.0,0.08627023]
[1725019736476,0.697516,59503.0,59502.0,0.00225223]
[1725019737471,0.781532,59503.0,59502.0,0.00225223]
[1725019738980,0.2527,59503.0,59502.0,0.20627023]
[1725019739480,0.2527,59503.0,59502.0,0.56707023]
[1725019741184,0.2527,59503.0,59502.0,0.65108823]
[1725019741489,0.2527,59503.0,59502.0,1.83930623]
[1725019741690,0.2527,59503.0,59502.0,1.88962274]
[1725019742186,0.2527,59503.0,59502.0,0.08627023]
[1725019743388,0.10978,59503.0,59502.0,0.08627023]
[1725019747982,0.10978,59503.0,59502.0,0.17028823]
[1725019748588,0.10978,59503.0,59502.0,0.25648823]
[1725019749283,0.10978,59503.0,59502.0,0.34050623]
[1725019750389,0.10956,59503.0,59502.0,0.25648823]
[1725019750783,0.10956,59503.0,59502.0,0.39284823]
[1725019751698,0.10956,59503.0,59502.0,0.25648823]
[1725019754695,0.10956,59503.0,59502.0,0.30685255]
[1725019755286,0.10956,59503.0,59502.0,0.25648823]
[1725019756089,0.10956,59503.0,59502.0,0.25448823]
[1725019756395,0.10956,59503.0,59502.0,0.30484921]
[1725019756695,0.10956,59503.0,59502.0,0.13463121]
[1725019756894,0.10956,59503.0,59502.0,0.08527023]
[1725019758691,0.10956,59503.0,59502.0,0.08427023]
[1725019760391,0.10956,59503.0,59502.0,0.08527023]
[1725019760886,0.10956,59503.0,59502.0,0.08427023]
[1725019763192,0.10956,59503.0,59502.0,0.16828823]
[1725019763591,0.10956,59503.0,59502.0,0.33280623]
[1725019763998,0.10956,59503.0,59502.0,1.43800623]
[1725019764197,0.10956,59503.0,59502.0,1.79880623]
[1725019764500,0.10956,59503.0,59502.0,1.92683635]
[1725019764697,0.116,59509.0,59508.0,0.168018]
[1725019764900,0.246,59509.0,59508.0,0.648818]
[1725019765596,0.246,59509.0,59508.0,1.752938]
[1725019766294,0.246,59509.0,59508.0,1.753938]
[1725019766498,0.246,59509.0,59508.0,0.565809]
[1725019766799,0.246,59509.0,59508.0,0.568809]
[1725019767603,0.246,59509.0,59508.0,0.652818]
[1725019767903,0.246,59509.0,59508.0,1.156938]
[1725019768291,0.246,59509.0,59508.0,1.517738]
[1725019769002,0.246,59509.0,59508.0,1.516738]
[1725019769200,0.246,59509.0,59508.0,1.515738]
[1725019769989,0.246,59509.0,59508.0,1.514738]
[1725019770208,0.246,59509.0,59508.0,0.806609]
[1725019770507,0.330008,59509.0,59508.0,0.806609]
[1725019770797,0.246,59509.0,59508.0,0.806609]
[1725019771002,0.330008,59509.0,59508.0,0.806609]
[1725019771506,0.330008,59509.0,59508.0,0.926609]
[1725019771692,0.414016,59509.0,59508.0,0.3618]
[1725019772004,0.45773163,59509.0,59508.0,0.3618]
[1725019773512,0.37372363,59509.0,59508.0,0.3618]
[1725019774200,0.330008,59509.0,59508.0,0.3618]
[1725019775897,0.329788,59509.0,59508.0,0.3618]